[Event "Early-Titled-Tuesday-Blitz-October-17-2023"]
[Site "Chess.com"]
[Date "2023.10.17"]
[Round "5"]
[White "WPWPWP-2015"]
[Black "Hasangatin_Ramil"]
[Result "1/2-1/2"]
[WhiteElo "2556"]
[BlackElo "2722"]
[TimeControl "180+1"]
[EndTime "9:03:33 PDT"]
[Termination "Game drawn by 50-move rule"]

1. e4 {[%clk 0:02:04.2]} 1... d5 {[%clk 0:02:58.3]} 2. exd5 {[%clk 0:01:59.6]}
2... Qxd5 {[%clk 0:02:59.2]} 3. Nc3 {[%clk 0:01:58.9]} 3... Qd6 {[%clk
0:02:59.5]} 4. g3 {[%clk 0:01:54.9]} 4... Nf6 {[%clk 0:02:59.6]} 5. Bg2 {[%clk
0:01:54.1]} 5... c6 {[%clk 0:03:00.2]} 6. Nf3 {[%clk 0:01:53.6]} 6... Bg4 {[%clk
0:03:00.6]} 7. h3 {[%clk 0:01:49.3]} 7... Bxf3 {[%clk 0:03:00.2]} 8. Qxf3 {[%clk
0:01:44.1]} 8... e6 {[%clk 0:03:01.1]} 9. O-O {[%clk 0:01:18.9]} 9... Nbd7
{[%clk 0:03:00.5]} 10. Re1 {[%clk 0:00:46.2]} 10... Be7 {[%clk 0:02:58.6]} 11.
d3 {[%clk 0:00:46.2]} 11... Qc7 {[%clk 0:02:58.5]} 12. Bf4 {[%clk 0:00:46]}
12... Bd6 {[%clk 0:02:57.9]} 13. Bd2 {[%clk 0:00:45.4]} 13... O-O {[%clk
0:02:57.1]} 14. a4 {[%clk 0:00:44.2]} 14... a5 {[%clk 0:02:56.5]} 15. Kh2 {[%clk
0:00:42.6]} 15... Rfe8 {[%clk 0:02:56.3]} 16. Ne4 {[%clk 0:00:42.5]} 16... Nxe4
{[%clk 0:02:55.5]} 17. Qxe4 {[%clk 0:00:42.4]} 17... Nf6 {[%clk 0:02:55.1]} 18.
Qe2 {[%clk 0:00:42.2]} 18... Nd5 {[%clk 0:02:53.4]} 19. c3 {[%clk 0:00:41.3]}
19... g6 {[%clk 0:02:48.9]} 20. Qf3 {[%clk 0:00:40.7]} 20... Bf8 {[%clk
0:02:46.4]} 21. h4 {[%clk 0:00:36.8]} 21... h5 {[%clk 0:02:45.5]} 22. Bg5 {[%clk
0:00:35.7]} 22... Bg7 {[%clk 0:02:44.8]} 23. Re2 {[%clk 0:00:32.4]} 23... e5
{[%clk 0:02:32]} 24. Bd2 {[%clk 0:00:31.8]} 24... Nf6 {[%clk 0:02:29.7]} 25. Kg1
{[%clk 0:00:31.1]} 25... Qb6 {[%clk 0:02:27.5]} 26. Be3 {[%clk 0:00:29.8]} 26...
Qb3 {[%clk 0:02:27.5]} 27. Rd2 {[%clk 0:00:29.2]} 27... Ng4 {[%clk 0:02:26]} 28.
Qd1 {[%clk 0:00:28.7]} 28... Qxd1+ {[%clk 0:02:16.2]} 29. Raxd1 {[%clk 0:00:28]}
29... Nxe3 {[%clk 0:02:11.9]} 30. fxe3 {[%clk 0:00:28.9]} 30... Bh6 {[%clk
0:02:11.2]} 31. Kf2 {[%clk 0:00:28.9]} 31... Kg7 {[%clk 0:02:11.1]} 32. Re2
{[%clk 0:00:26.6]} 32... f5 {[%clk 0:02:09.6]} 33. d4 {[%clk 0:00:26.2]} 33...
f4 {[%clk 0:02:10]} 34. exf4 {[%clk 0:00:25]} 34... exf4 {[%clk 0:02:07.2]} 35.
Rde1 {[%clk 0:00:22.1]} 35... fxg3+ {[%clk 0:02:00]} 36. Kxg3 {[%clk 0:00:22.5]}
36... Rxe2 {[%clk 0:02:00.1]} 37. Rxe2 {[%clk 0:00:22.8]} 37... Kf6 {[%clk
0:01:58.9]} 38. d5 {[%clk 0:00:23.2]} 38... Rd8 {[%clk 0:01:48.6]} 39. c4 {[%clk
0:00:19.5]} 39... Rd6 {[%clk 0:01:39.6]} 40. c5 {[%clk 0:00:16.9]} 40... Rd8
{[%clk 0:01:39.7]} 41. dxc6 {[%clk 0:00:16.1]} 41... Rd3+ {[%clk 0:01:38.6]} 42.
Kf2 {[%clk 0:00:16.4]} 42... bxc6 {[%clk 0:01:37.9]} 43. Bxc6 {[%clk 0:00:16.2]}
43... Bf8 {[%clk 0:01:37.9]} 44. Bb5 {[%clk 0:00:14.9]} 44... Bxc5+ {[%clk
0:01:37.7]} 45. Kg2 {[%clk 0:00:15.5]} 45... Rd4 {[%clk 0:01:34.2]} 46. Rc2
{[%clk 0:00:15.6]} 46... Rg4+ {[%clk 0:01:30.1]} 47. Kf3 {[%clk 0:00:15.3]}
47... Bd6 {[%clk 0:01:30.3]} 48. Rc6 {[%clk 0:00:14.9]} 48... Ke5 {[%clk
0:01:24.3]} 49. Rc4 {[%clk 0:00:14.6]} 49... Rg1 {[%clk 0:01:17]} 50. Be8 {[%clk
0:00:14.2]} 50... Kd5 {[%clk 0:01:09.7]} 51. Rc2 {[%clk 0:00:12.6]} 51... Be7
{[%clk 0:01:04.2]} 52. Re2 {[%clk 0:00:10.4]} 52... Bxh4 {[%clk 0:01:03.1]} 53.
Rg2 {[%clk 0:00:09.2]} 53... Rf1+ {[%clk 0:00:52.3]} 54. Ke3 {[%clk 0:00:09.5]}
54... Re1+ {[%clk 0:00:52.2]} 55. Re2 {[%clk 0:00:08.7]} 55... Bg5+ {[%clk
0:00:41.8]} 56. Kf2 {[%clk 0:00:08.2]} 56... Rc1 {[%clk 0:00:32]} 57. Bxg6
{[%clk 0:00:07.4]} 57... h4 {[%clk 0:00:32.4]} 58. Kg2 {[%clk 0:00:04.8]} 58...
Bf6 {[%clk 0:00:30.6]} 59. Bf7+ {[%clk 0:00:04.7]} 59... Kd4 {[%clk 0:00:29.4]}
60. Bg6 {[%clk 0:00:04.9]} 60... Rc7 {[%clk 0:00:23]} 61. Rf2 {[%clk 0:00:05.2]}
61... Be5 {[%clk 0:00:21.6]} 62. Kh3 {[%clk 0:00:05.3]} 62... Rg7 {[%clk
0:00:21.1]} 63. Rg2 {[%clk 0:00:05.7]} 63... Bg3 {[%clk 0:00:20.7]} 64. Bf5
{[%clk 0:00:06]} 64... Rg5 {[%clk 0:00:19]} 65. Bd7 {[%clk 0:00:05.9]} 65... Rg7
{[%clk 0:00:18.5]} 66. Be6 {[%clk 0:00:05.9]} 66... Ke5 {[%clk 0:00:17.8]} 67.
Bc4 {[%clk 0:00:05.4]} 67... Rc7 {[%clk 0:00:17.2]} 68. b3 {[%clk 0:00:05.7]}
68... Rd7 {[%clk 0:00:17.4]} 69. Re2+ {[%clk 0:00:05.3]} 69... Kf4 {[%clk
0:00:17.4]} 70. Re8 {[%clk 0:00:05.4]} 70... Rd1 {[%clk 0:00:16.7]} 71. Rf8+
{[%clk 0:00:05.3]} 71... Ke5 {[%clk 0:00:17]} 72. Rf1 {[%clk 0:00:04.9]} 72...
Rd2 {[%clk 0:00:16]} 73. Rf8 {[%clk 0:00:04.6]} 73... Rb2 {[%clk 0:00:13.8]} 74.
Re8+ {[%clk 0:00:04.6]} 74... Kd4 {[%clk 0:00:14.2]} 75. Rd8+ {[%clk 0:00:04.7]}
75... Kc5 {[%clk 0:00:14.3]} 76. Rd5+ {[%clk 0:00:04.7]} 76... Kb4 {[%clk
0:00:14.8]} 77. Rb5+ {[%clk 0:00:04.9]} 77... Kc3 {[%clk 0:00:15.3]} 78. Rxa5
{[%clk 0:00:05.4]} 78... Rh2+ {[%clk 0:00:15.7]} 79. Kg4 {[%clk 0:00:05.9]}
79... Be1 {[%clk 0:00:16]} 80. Rh5 {[%clk 0:00:05.9]} 80... Rg2+ {[%clk
0:00:15.5]} 81. Kf3 {[%clk 0:00:05.9]} 81... Rg3+ {[%clk 0:00:15.5]} 82. Ke2
{[%clk 0:00:06.3]} 82... Bd2 {[%clk 0:00:15]} 83. Rxh4 {[%clk 0:00:06.2]} 83...
Re3+ {[%clk 0:00:14.6]} 84. Kf1 {[%clk 0:00:06.2]} 84... Re1+ {[%clk 0:00:15.2]}
85. Kg2 {[%clk 0:00:06.5]} 85... Re8 {[%clk 0:00:16.1]} 86. Rh3+ {[%clk
0:00:06.8]} 86... Kc2 {[%clk 0:00:15.8]} 87. Rf3 {[%clk 0:00:07]} 87... Kd1
{[%clk 0:00:14.8]} 88. Kg3 {[%clk 0:00:06.3]} 88... Be1+ {[%clk 0:00:14.5]} 89.
Kf4 {[%clk 0:00:06]} 89... Bd2+ {[%clk 0:00:14.9]} 90. Kg4 {[%clk 0:00:06]}
90... Re4+ {[%clk 0:00:13]} 91. Kf5 {[%clk 0:00:06]} 91... Re8 {[%clk
0:00:12.4]} 92. Rh3 {[%clk 0:00:06]} 92... Kc2 {[%clk 0:00:12.5]} 93. Kf6 {[%clk
0:00:06.4]} 93... Bc3+ {[%clk 0:00:12.1]} 94. Kf7 {[%clk 0:00:06.4]} 94... Re5
{[%clk 0:00:11.1]} 95. Rh2+ {[%clk 0:00:06.7]} 95... Kc1 {[%clk 0:00:10.3]} 96.
Rh3 {[%clk 0:00:06.4]} 96... Kb2 {[%clk 0:00:10.1]} 97. Rh2+ {[%clk 0:00:06.6]}
97... Ka3 {[%clk 0:00:10.2]} 98. Rc2 {[%clk 0:00:06.3]} 98... Kb4 {[%clk
0:00:10.5]} 99. Re2 {[%clk 0:00:05.9]} 99... Rf5+ {[%clk 0:00:08.6]} 100. Ke6
{[%clk 0:00:05.8]} 100... Rh5 {[%clk 0:00:08.5]} 101. Rg2 {[%clk 0:00:05.8]}
101... Rh6+ {[%clk 0:00:08.6]} 102. Kd5 {[%clk 0:00:06]} 102... Rh5+ {[%clk
0:00:08.9]} 103. Kc6 {[%clk 0:00:06.3]} 103... Rh6+ {[%clk 0:00:09.2]} 104. Kd7
{[%clk 0:00:06.6]} 104... Rh7+ {[%clk 0:00:09.1]} 105. Ke6 {[%clk 0:00:06.5]}
105... Rh6+ {[%clk 0:00:09.5]} 106. Kf5 {[%clk 0:00:06.8]} 106... Rh5+ {[%clk
0:00:09.6]} 107. Kg4 {[%clk 0:00:06.7]} 107... Rh7 {[%clk 0:00:08.7]} 108. Re2
{[%clk 0:00:06.6]} 108... Bd4 {[%clk 0:00:08.2]} 109. Re8 {[%clk 0:00:06.4]}
109... Rg7+ {[%clk 0:00:07.4]} 110. Kf5 {[%clk 0:00:06.5]} 110... Rh7 {[%clk
0:00:07.6]} 111. Rb8+ {[%clk 0:00:06.6]} 111... Kc3 {[%clk 0:00:06.8]} 112. Rc8
{[%clk 0:00:06.7]} 112... Kb4 {[%clk 0:00:06.6]} 113. Rb8+ {[%clk 0:00:07.1]}
113... Kc3 {[%clk 0:00:07]} 114. a5 {[%clk 0:00:07.6]} 114... Rh5+ {[%clk
0:00:06.3]} 115. Ke4 {[%clk 0:00:07.9]} 115... Re5+ {[%clk 0:00:06.1]} 116. Kf4
{[%clk 0:00:08.1]} 116... Rxa5 {[%clk 0:00:06.8]} 117. Rc8 {[%clk 0:00:08.6]}
117... Kb4 {[%clk 0:00:06.4]} 118. Rb8+ {[%clk 0:00:08.2]} 118... Kc3 {[%clk
0:00:06.7]} 119. Rc8 {[%clk 0:00:08.5]} 119... Kd2 {[%clk 0:00:06.9]} 120. Ke4
{[%clk 0:00:08.5]} 120... Bc3 {[%clk 0:00:06.6]} 121. Rg8 {[%clk 0:00:08.1]}
121... Re5+ {[%clk 0:00:05.9]} 122. Kf4 {[%clk 0:00:08.6]} 122... Re1 {[%clk
0:00:06.1]} 123. Rg2+ {[%clk 0:00:08.2]} 123... Kc1 {[%clk 0:00:05.9]} 124. Bd3
{[%clk 0:00:08.5]} 124... Bd2+ {[%clk 0:00:06.2]} 125. Kf5 {[%clk 0:00:09]}
125... Re8 {[%clk 0:00:05.3]} 126. Bc4 {[%clk 0:00:09.2]} 126... Rf8+ {[%clk
0:00:04.5]} 127. Ke4 {[%clk 0:00:09.2]} 127... Re8+ {[%clk 0:00:04.6]} 128. Kd4
{[%clk 0:00:09.3]} 128... Rd8+ {[%clk 0:00:05]} 129. Bd5 {[%clk 0:00:09.5]}
129... Rd7 {[%clk 0:00:04.3]} 130. Kc4 {[%clk 0:00:08.8]} 130... Rc7+ {[%clk
0:00:04.1]} 131. Kd3 {[%clk 0:00:09]} 131... Rd7 {[%clk 0:00:03.9]} 132. Rg1+
{[%clk 0:00:08.6]} 132... Kb2 {[%clk 0:00:03.7]} 133. Kc4 {[%clk 0:00:07.7]}
133... Rc7+ {[%clk 0:00:03.3]} 134. Kd3 {[%clk 0:00:08]} 134... Rd7 {[%clk
0:00:03.6]} 135. Ke4 {[%clk 0:00:08]} 135... Bc3 {[%clk 0:00:03.3]} 136. Rg2+
{[%clk 0:00:08.4]} 136... Ka3 {[%clk 0:00:03.4]} 137. Be6 {[%clk 0:00:08.9]}
137... Re7 {[%clk 0:00:02.4]} 138. Kd5 {[%clk 0:00:09]} 138... Kb4 {[%clk
0:00:03.3]} 139. Kd6 {[%clk 0:00:09.2]} 139... Re8 {[%clk 0:00:03.1]} 140. Rg4+
{[%clk 0:00:09.5]} 140... Ka3 {[%clk 0:00:02.9]} 141. Ra4+ {[%clk 0:00:09.4]}
141... Kb2 {[%clk 0:00:02.5]} 142. Kd7 {[%clk 0:00:09.6]} 142... Rh8 {[%clk
0:00:02.1]} 143. Rg4 {[%clk 0:00:09.7]} 143... Rh7+ {[%clk 0:00:02.6]} 144. Kc6
{[%clk 0:00:09.9]} 144... Rh8 {[%clk 0:00:03.5]} 145. Rg2+ {[%clk 0:00:09.9]}
145... Ka3 {[%clk 0:00:03.8]} 146. Rg3 {[%clk 0:00:10.2]} 146... Kb2 {[%clk
0:00:04.1]} 147. Rf3 {[%clk 0:00:10.2]} 147... Kc2 {[%clk 0:00:03.5]} 148. Bf5+
{[%clk 0:00:10]} 148... Kb2 {[%clk 0:00:03.8]} 149. Be6 {[%clk 0:00:10.3]}
149... Kc2 {[%clk 0:00:04]} 150. Bc4 {[%clk 0:00:10.5]} 150... Kb2 {[%clk
0:00:04.2]} 151. Rf2+ {[%clk 0:00:10.5]} 151... Ka3 {[%clk 0:00:03.5]} 152. Bf7
{[%clk 0:00:10.7]} 152... Kb4 {[%clk 0:00:03.7]} 153. Rf4+ {[%clk 0:00:10.3]}
153... Ka3 {[%clk 0:00:04]} 154. Rc4 {[%clk 0:00:10.1]} 154... Kb2 {[%clk
0:00:04.3]} 155. Re4 {[%clk 0:00:10]} 155... Rh6+ {[%clk 0:00:04.7]} 156. Kb5
{[%clk 0:00:09.3]} 156... Ka3 {[%clk 0:00:05.6]} 157. Ra4+ {[%clk 0:00:08.9]}
157... Kb2 {[%clk 0:00:05.2]} 158. Rg4 {[%clk 0:00:09.2]} 158... Rf6 {[%clk
0:00:04.6]} 159. Bd5 {[%clk 0:00:09.3]} 159... Rf5 {[%clk 0:00:04.8]} 160. Kc4
{[%clk 0:00:09.4]} 160... Be5 {[%clk 0:00:04.2]} 161. Rg2+ {[%clk 0:00:09.2]}
161... Ka3 {[%clk 0:00:04.1]} 162. Be6 {[%clk 0:00:08.5]} 162... Rf4+ {[%clk
0:00:03.7]} 163. Kd5 {[%clk 0:00:08.8]} 163... Bb2 {[%clk 0:00:04.3]} 164. Kd6
{[%clk 0:00:08.5]} 164... Rd4+ {[%clk 0:00:04.2]} 165. Kc5 {[%clk 0:00:08.5]}
165... Rd8 {[%clk 0:00:04.1]} 166. Rg4 {[%clk 0:00:08.7]} 166... Bc3 {[%clk
0:00:03.7]} 1/2-1/2

[Event "Early-Titled-Tuesday-Blitz-October-17-2023"]
[Site "Chess.com"]
[Date "2023.10.17"]
[Round "6"]
[White "cycygogne"]
[Black "Road2GM3000"]
[Result "1-0"]
[WhiteElo "2274"]
[BlackElo "2414"]
[TimeControl "180+1"]
[EndTime "9:06:20 PDT"]
[Termination "cycygogne won by checkmate"]

1. e4 {[%clk 0:03:00.9]} 1... c5 {[%clk 0:03:00.1]} 2. Nf3 {[%clk 0:03:00.7]}
2... d6 {[%clk 0:03:00.9]} 3. d4 {[%clk 0:03:00.6]} 3... cxd4 {[%clk 0:03:01.8]}
4. Nxd4 {[%clk 0:03:01]} 4... Nf6 {[%clk 0:03:02.6]} 5. Nc3 {[%clk 0:03:01.4]}
5... a6 {[%clk 0:03:03.4]} 6. Bg5 {[%clk 0:03:01.3]} 6... e6 {[%clk 0:03:03.7]}
7. Qf3 {[%clk 0:03:01]} 7... Be7 {[%clk 0:03:03.1]} 8. O-O-O {[%clk 0:03:00.8]}
8... Qb6 {[%clk 0:03:03.8]} 9. Qg3 {[%clk 0:02:51.1]} 9... Nc6 {[%clk
0:03:01.9]} 10. Nb3 {[%clk 0:02:41.5]} 10... Bd7 {[%clk 0:02:56.5]} 11. f4
{[%clk 0:02:41.2]} 11... Na5 {[%clk 0:02:53.7]} 12. e5 {[%clk 0:02:34.9]} 12...
Nh5 {[%clk 0:02:43.5]} 13. Qh4 {[%clk 0:02:32.9]} 13... Bxg5 {[%clk 0:02:37.6]}
14. Qxg5 {[%clk 0:02:32.1]} 14... Nxb3+ {[%clk 0:02:37.5]} 15. axb3 {[%clk
0:02:28.7]} 15... g6 {[%clk 0:02:22.7]} 16. g4 {[%clk 0:02:16.8]} 16... Qe3+
{[%clk 0:02:21.1]} 17. Kb1 {[%clk 0:02:16.4]} 17... Bc6 {[%clk 0:02:16.5]} 18.
exd6 {[%clk 0:02:05.4]} 18... Qxf4 {[%clk 0:02:09.2]} 19. Qe7# {[%clk
0:02:04.4]} 1-0

[Event "Early-Titled-Tuesday-Blitz-October-17-2023"]
[Site "Chess.com"]
[Date "2023.10.17"]
[Round "6"]
[White "surrenderPLS"]
[Black "Josgar05"]
[Result "1-0"]
[WhiteElo "2511"]
[BlackElo "2340"]
[TimeControl "180+1"]
[EndTime "9:06:21 PDT"]
[Termination "surrenderPLS won by resignation"]

1. e4 {[%clk 0:03:00.9]} 1... e6 {[%clk 0:02:59.9]} 2. d4 {[%clk 0:02:59.3]}
2... d5 {[%clk 0:03:00.4]} 3. Nc3 {[%clk 0:02:53.8]} 3... dxe4 {[%clk
0:03:00.4]} 4. Nxe4 {[%clk 0:02:53.7]} 4... Nd7 {[%clk 0:03:01.3]} 5. Nf3 {[%clk
0:02:52.5]} 5... Ngf6 {[%clk 0:03:01.9]} 6. Bg5 {[%clk 0:02:51.2]} 6... Be7
{[%clk 0:03:01.6]} 7. Nxf6+ {[%clk 0:02:50.2]} 7... Nxf6 {[%clk 0:03:01.6]} 8.
Bd3 {[%clk 0:02:45.8]} 8... O-O {[%clk 0:03:01.4]} 9. Qe2 {[%clk 0:02:45.5]}
9... b6 {[%clk 0:02:58.8]} 10. Bxf6 {[%clk 0:02:43.3]} 10... Bxf6 {[%clk
0:02:53.4]} 11. Qe4 {[%clk 0:02:42.7]} 11... g6 {[%clk 0:02:36.5]} 12. Qxa8
{[%clk 0:02:42.2]} 12... Qd6 {[%clk 0:02:37.4]} 13. Qe4 {[%clk 0:02:40.5]} 13...
Bd7 {[%clk 0:02:35.8]} 14. c3 {[%clk 0:02:38.9]} 14... Bc6 {[%clk 0:02:35.8]}
15. Qe3 {[%clk 0:02:38.9]} 15... Re8 {[%clk 0:02:35.2]} 16. O-O {[%clk
0:02:37.5]} 16... e5 {[%clk 0:02:34.6]} 17. dxe5 {[%clk 0:02:37]} 17... Bxe5
{[%clk 0:02:34.6]} 18. Nxe5 {[%clk 0:02:36.5]} 18... Rxe5 {[%clk 0:02:35.5]} 19.
Qg3 {[%clk 0:02:32.4]} 19... Qd5 {[%clk 0:02:35.1]} 20. h4 {[%clk 0:02:21.9]}
20... h5 {[%clk 0:02:27.8]} 21. Rad1 {[%clk 0:02:17.6]} 21... Qc5 {[%clk
0:02:28.1]} 22. Rfe1 {[%clk 0:02:02.4]} 1-0

[Event "Early-Titled-Tuesday-Blitz-October-17-2023"]
[Site "Chess.com"]
[Date "2023.10.17"]
[Round "6"]
[White "jeetjain"]
[Black "maracayo"]
[Result "0-1"]
[WhiteElo "2558"]
[BlackElo "2381"]
[TimeControl "180+1"]
[EndTime "9:07:17 PDT"]
[Termination "maracayo won by resignation"]

1. d4 {[%clk 0:03:00.3]} 1... d6 {[%clk 0:02:59.6]} 2. c4 {[%clk 0:02:59.8]}
2... Nf6 {[%clk 0:02:59.3]} 3. Nc3 {[%clk 0:02:59.7]} 3... e5 {[%clk 0:02:59]}
4. dxe5 {[%clk 0:02:59.3]} 4... dxe5 {[%clk 0:02:59.9]} 5. Qxd8+ {[%clk
0:02:59.9]} 5... Kxd8 {[%clk 0:03:00.3]} 6. Nf3 {[%clk 0:03:00.2]} 6... Nbd7
{[%clk 0:02:58.7]} 7. Bg5 {[%clk 0:02:55]} 7... c6 {[%clk 0:02:57.2]} 8. O-O-O
{[%clk 0:02:55]} 8... Kc7 {[%clk 0:02:55.9]} 9. h3 {[%clk 0:02:54.4]} 9... Bb4
{[%clk 0:02:55.1]} 10. Bd2 {[%clk 0:02:51.7]} 10... a5 {[%clk 0:02:44.9]} 11. a3
{[%clk 0:02:51.2]} 11... Bxc3 {[%clk 0:02:34.4]} 12. Bxc3 {[%clk 0:02:52.1]}
12... Re8 {[%clk 0:02:34.9]} 13. g4 {[%clk 0:02:52.2]} 13... Ne4 {[%clk
0:02:33.7]} 14. Be1 {[%clk 0:02:51.9]} 14... f6 {[%clk 0:02:31.6]} 15. Nd2
{[%clk 0:02:51.6]} 15... Nec5 {[%clk 0:02:29.4]} 16. f3 {[%clk 0:02:50.8]} 16...
a4 {[%clk 0:02:28.6]} 17. Bf2 {[%clk 0:02:51]} 17... b6 {[%clk 0:02:26.9]} 18.
h4 {[%clk 0:02:50.3]} 18... e4 {[%clk 0:02:22.2]} 19. Bg3+ {[%clk 0:02:46.8]}
19... Kb7 {[%clk 0:02:19.5]} 20. h5 {[%clk 0:02:40.3]} 20... e3 {[%clk
0:02:17.1]} 21. Nb1 {[%clk 0:02:40]} 21... Nb3+ {[%clk 0:02:16.2]} 22. Kc2
{[%clk 0:02:40.2]} 22... Ndc5 {[%clk 0:02:15.3]} 23. Nc3 {[%clk 0:02:39.4]}
23... Be6 {[%clk 0:02:12.9]} 24. h6 {[%clk 0:02:31.8]} 24... g6 {[%clk
0:01:55.9]} 25. f4 {[%clk 0:02:27.9]} 25... Bxg4 {[%clk 0:01:50.7]} 26. Bg2
{[%clk 0:02:27.4]} 26... Bf5+ {[%clk 0:01:49.4]} 27. Rd3 {[%clk 0:02:25.2]}
27... Rad8 {[%clk 0:01:45.9]} 28. Rd1 {[%clk 0:02:21.1]} 28... Nxd3 {[%clk
0:01:44.7]} 29. exd3 {[%clk 0:02:22]} 29... e2 {[%clk 0:01:43.8]} 0-1

[Event "Early-Titled-Tuesday-Blitz-October-17-2023"]
[Site "Chess.com"]
[Date "2023.10.17"]
[Round "6"]
[White "noblerone"]
[Black "AsaHoffmann"]
[Result "1-0"]
[WhiteElo "2513"]
[BlackElo "2347"]
[TimeControl "180+1"]
[EndTime "9:07:53 PDT"]
[Termination "noblerone won by resignation"]

1. d4 {[%clk 0:03:00.9]} 1... Nf6 {[%clk 0:02:57.3]} 2. Nf3 {[%clk 0:02:58.4]}
2... d6 {[%clk 0:02:56.3]} 3. Bg5 {[%clk 0:02:58.1]} 3... Bf5 {[%clk 0:02:50.6]}
4. Nbd2 {[%clk 0:02:58]} 4... Nbd7 {[%clk 0:02:50.4]} 5. c3 {[%clk 0:02:55.2]}
5... c6 {[%clk 0:02:50.2]} 6. e3 {[%clk 0:02:54.3]} 6... e5 {[%clk 0:02:49.5]}
7. Qb3 {[%clk 0:02:53.6]} 7... Qb6 {[%clk 0:02:48.6]} 8. Nc4 {[%clk 0:02:51.9]}
8... Qc7 {[%clk 0:02:43.9]} 9. Be2 {[%clk 0:02:42.7]} 9... e4 {[%clk 0:02:43.8]}
10. Nfd2 {[%clk 0:02:40.3]} 10... d5 {[%clk 0:02:43.7]} 11. Na3 {[%clk
0:02:39.4]} 11... Qb6 {[%clk 0:02:41.2]} 12. Nc2 {[%clk 0:02:33.8]} 12... Be7
{[%clk 0:02:39.4]} 13. c4 {[%clk 0:02:26]} 13... O-O {[%clk 0:02:37.5]} 14. c5
{[%clk 0:02:23.2]} 14... Qxb3 {[%clk 0:02:36.9]} 15. Nxb3 {[%clk 0:02:20.8]}
15... a5 {[%clk 0:02:32.9]} 16. a4 {[%clk 0:02:08.5]} 16... b6 {[%clk
0:02:31.5]} 17. cxb6 {[%clk 0:01:58]} 17... Nxb6 {[%clk 0:02:28.9]} 18. Nc5
{[%clk 0:01:54.2]} 18... Bxc5 {[%clk 0:02:27.2]} 19. dxc5 {[%clk 0:01:55.1]}
19... Nbd7 {[%clk 0:02:26.8]} 20. b4 {[%clk 0:01:54.1]} 20... axb4 {[%clk
0:02:25.4]} 21. Nxb4 {[%clk 0:01:50.4]} 21... Rfc8 {[%clk 0:02:23.4]} 22. O-O
{[%clk 0:01:42.5]} 22... Nxc5 {[%clk 0:02:21.2]} 23. Bxf6 {[%clk 0:01:25.2]}
23... gxf6 {[%clk 0:02:20.6]} 24. Rac1 {[%clk 0:01:25.1]} 24... Nb3 {[%clk
0:02:17.9]} 25. Rxc6 {[%clk 0:01:24.6]} 25... Rxa4 {[%clk 0:02:11.4]} 26. Rxc8+
{[%clk 0:01:22.4]} 26... Bxc8 {[%clk 0:02:11]} 27. Nxd5 {[%clk 0:01:23.2]} 27...
Be6 {[%clk 0:02:10.9]} 28. Nf4 {[%clk 0:01:20.4]} 28... Ra2 {[%clk 0:02:08.6]}
29. Nxe6 {[%clk 0:01:14.1]} 29... Rxe2 {[%clk 0:02:04.5]} 30. Nf4 {[%clk
0:01:13]} 30... Nc5 {[%clk 0:01:59.9]} 31. Nxe2 {[%clk 0:01:12.7]} 1-0

[Event "Early-Titled-Tuesday-Blitz-October-17-2023"]
[Site "Chess.com"]
[Date "2023.10.17"]
[Round "6"]
[White "Laico"]
[Black "NelsonLinda"]
[Result "1-0"]
[WhiteElo "2457"]
[BlackElo "2589"]
[TimeControl "180+1"]
[EndTime "9:08:13 PDT"]
[Termination "Laico won by resignation"]

1. e4 {[%clk 0:03:00.9]} 1... c5 {[%clk 0:02:56.4]} 2. Nc3 {[%clk 0:03:01.1]}
2... e6 {[%clk 0:02:54.4]} 3. f4 {[%clk 0:03:01.4]} 3... a6 {[%clk 0:02:53]} 4.
g3 {[%clk 0:03:01.3]} 4... d5 {[%clk 0:02:52.8]} 5. Bg2 {[%clk 0:02:54.2]} 5...
dxe4 {[%clk 0:02:52.9]} 6. Nxe4 {[%clk 0:02:55.1]} 6... Nf6 {[%clk 0:02:53.1]}
7. Qe2 {[%clk 0:02:53.4]} 7... Be7 {[%clk 0:02:51.1]} 8. Nf3 {[%clk 0:02:53]}
8... Nxe4 {[%clk 0:02:47.7]} 9. Qxe4 {[%clk 0:02:53.9]} 9... Nd7 {[%clk
0:02:48.6]} 10. O-O {[%clk 0:02:47.2]} 10... Nf6 {[%clk 0:02:48.8]} 11. Qe2
{[%clk 0:02:47.1]} 11... Qc7 {[%clk 0:02:47.3]} 12. Ne5 {[%clk 0:02:44.9]} 12...
O-O {[%clk 0:02:41.2]} 13. b3 {[%clk 0:02:44.9]} 13... Bd7 {[%clk 0:02:28.6]}
14. Bb2 {[%clk 0:02:44]} 14... Rfd8 {[%clk 0:02:22.3]} 15. Rae1 {[%clk
0:02:37.8]} 15... Bb5 {[%clk 0:02:18.3]} 16. d3 {[%clk 0:02:34.5]} 16... Bf8
{[%clk 0:02:10.2]} 17. Bh3 {[%clk 0:02:25.6]} 17... Nd7 {[%clk 0:02:04.8]} 18.
Nxf7 {[%clk 0:02:20.6]} 18... Re8 {[%clk 0:02:00.4]} 19. Bxe6 {[%clk 0:02:20.7]}
19... Nb6 {[%clk 0:01:40.2]} 20. Nd6+ {[%clk 0:01:54.5]} 20... Kh8 {[%clk
0:01:37.8]} 21. Nxe8 {[%clk 0:01:51.6]} 21... Rxe8 {[%clk 0:01:38.7]} 22. Qh5
{[%clk 0:01:46.1]} 22... Rxe6 {[%clk 0:01:17.2]} 23. Rxe6 {[%clk 0:01:43.9]}
23... Nc8 {[%clk 0:01:13.5]} 24. Rh6 {[%clk 0:01:39.9]} 24... Kg8 {[%clk
0:01:08.4]} 25. Rxh7 {[%clk 0:01:37.5]} 1-0

[Event "Early-Titled-Tuesday-Blitz-October-17-2023"]
[Site "Chess.com"]
[Date "2023.10.17"]
[Round "6"]
[White "DrCeltic"]
[Black "djokovic74"]
[Result "0-1"]
[WhiteElo "2562"]
[BlackElo "2733"]
[TimeControl "180+1"]
[EndTime "9:08:47 PDT"]
[Termination "djokovic74 won by resignation"]

1. e4 {[%clk 0:02:59.8]} 1... e6 {[%clk 0:03:00.1]} 2. d4 {[%clk 0:03:00.2]}
2... d5 {[%clk 0:03:00.8]} 3. Nc3 {[%clk 0:03:00.8]} 3... dxe4 {[%clk
0:03:01.4]} 4. Nxe4 {[%clk 0:03:01.2]} 4... Bd7 {[%clk 0:03:02.2]} 5. Nf3 {[%clk
0:03:00.9]} 5... Bc6 {[%clk 0:03:02.8]} 6. Bd3 {[%clk 0:03:01.2]} 6... Nd7
{[%clk 0:03:03.6]} 7. Qe2 {[%clk 0:03:01.4]} 7... Ngf6 {[%clk 0:03:04.2]} 8. Ng3
{[%clk 0:02:58.1]} 8... Be7 {[%clk 0:03:03.7]} 9. Bd2 {[%clk 0:02:57.7]} 9...
Bxf3 {[%clk 0:03:03.8]} 10. Qxf3 {[%clk 0:02:57.2]} 10... c6 {[%clk 0:03:04.6]}
11. O-O-O {[%clk 0:02:56.8]} 11... O-O {[%clk 0:03:04]} 12. Kb1 {[%clk
0:02:56.4]} 12... a5 {[%clk 0:03:04.3]} 13. h4 {[%clk 0:02:54.6]} 13... a4
{[%clk 0:03:04.9]} 14. h5 {[%clk 0:02:49.1]} 14... Qb6 {[%clk 0:03:02.9]} 15.
Ne4 {[%clk 0:02:35.5]} 15... Nxe4 {[%clk 0:02:55.9]} 16. Bxe4 {[%clk 0:02:23.6]}
16... Nf6 {[%clk 0:02:55.9]} 17. h6 {[%clk 0:02:19.7]} 17... a3 {[%clk
0:02:45.6]} 18. b3 {[%clk 0:02:17.4]} 18... Qxd4 {[%clk 0:02:42.9]} 19. Bc3
{[%clk 0:02:13.8]} 19... Qxe4 {[%clk 0:02:42.4]} 20. hxg7 {[%clk 0:02:14.2]}
20... Rfd8 {[%clk 0:02:36.4]} 21. Qg3 {[%clk 0:02:02.6]} 21... Nd5 {[%clk
0:01:54.5]} 22. Be5 {[%clk 0:01:56.1]} 22... Qg6 {[%clk 0:01:48.2]} 23. Qf3
{[%clk 0:01:48.6]} 23... Bf6 {[%clk 0:01:30]} 24. Rde1 {[%clk 0:01:25.3]} 24...
Bxe5 {[%clk 0:01:11.9]} 25. Rxe5 {[%clk 0:01:26.2]} 25... Nf6 {[%clk 0:01:09.1]}
26. Qe3 {[%clk 0:01:19.7]} 26... Ng4 {[%clk 0:01:05]} 0-1